[Event "67th Mexican-ch Open 2022"]
[Site "Chihuahua"]
[Date "2022.04.16"]
[Round "7.16"]
[White "Jorajuria Mendoza, Algol"]
[Black "Tapie Amione, Pablo Adib"]
[Result "1-0"]
[ECO "B40"]
[WhiteElo "2006"]
[BlackElo "2241"]
[Annotator "TA"]
[PlyCount "138"]
[EventDate "2022.04.12"]
[EventType "swiss"]
[EventCountry "MEX"]
[SourceTitle "playchess.com"]
[Source "ChessBase"]
[SourceQuality "1"]
[TimeControl "5400+30"]

{[%evp 9,138,0,13,0,-1,-9,18,15,14,7,21,37,33,0,0,6,0,0,0,-3,4,-22,-25,-45,-21,-36,-29,-29,-13,-20,35,27,38,24,33,34,102,104,156,149,156,125,114,120,119,120,122,118,129,130,164,150,172,135,160,157,151,137,137,141,126,133,183,181,218,244,514,60,60,57,66,16,140,118,132,150,146,92,94,93,93,93,93,108,197,221,186,214,454,437,462,424,419,409,481,465,489,502,480,482,464,444,483,316,310,298,354,261,545,535,579,543,782,771,700,660,823,796,873,733,907,876,832,882,873,866,905,882,1015,937,800]} 1. e4 {[%emt 0:00:05]} e6 {[%emt 0:07:12]} 2. d4 {[%emt 0:00:19]} c5 {[%emt 0:00:04]} 3. Nf3 {[%emt 0:00:14]} cxd4 {[%emt 0:00:07]} 4. Qxd4 {[%emt 0:00:18]} Nc6 {[%emt 0:00:36]} 5. Qe3 {[%emt 0:00:05]} Nf6 {[%emt 0:04:22]} 6. Be2 {[%emt 0:00:05] B40: Sicilian: 2...e6, Unusual lines.} d5 {[%emt 0:00:16]} 7. exd5 {[%emt 0:00:04] [#]} Nb4 $146 {[%emt 0:01:35]} (7... Qxd5 8. Nc3 Qf5 9. Bd3 $14) ({Predecessor:} 7... Nxd5 8. Qb3 Bc5 9. O-O O-O 10. Rd1 Qc7 11. Nc3 Nxc3 12. Qxc3 Qb6 13. Be3 Bxe3 14. fxe3 {½-½ (59) Artemiev,V (2706)-Chigaev,M (2599) Sochi 2018}) 8. Na3 {[%emt 0:15:23] And now dxe6 would win. The position is equal.} Nbxd5 {[%emt 0:00:54]} 9. Qb3 {[%emt 0:00:20]} Qa5+ {[%emt 0:34:24]} 10. Bd2 {[%emt 0:01:15]} Bb4 {[%emt 0:02:14]} 11. O-O {[%emt 0:11:33]} Bxd2 {[%emt 0:01:54]} 12. Nc4 {[%emt 0:00:13][%csl LRa5,LRd2]} Qc7 {[%emt 0:00:43]} 13. Nfxd2 {[%emt 0:04:13]} O-O {[%emt 0:00:29]} 14. Bf3 {[%emt 0:04:59]} b6 {[%emt 0:04:48][%cal Bb7b6,Bb6b5][%mdl 32]} 15. a4 {[%emt 0:02:09]} Ba6 {[%emt 0:00:10]} 16. Rfc1 {[%emt 0:02:05]} Rad8 {[%emt 0:03:53]} 17. a5 {[%emt 0:10:19] Strongly threatening axb6.} b5 {[%emt 0:00:44]} 18. Ne3 {[%emt 0:00:37]} Nf4 {[%emt 0:01:02]} 19. Rd1 {[%emt 0:01:56]} Nd7 {[%emt 0:04:45]} (19... Qe7 $11) 20. Qb4 $1 $14 {[%emt 0:02:15]} Ng6 {[%emt 0:06:56]} 21. Ne4 {[%emt 0:04:19][%cal Bd2e4,Be4d6,Bd6b5][%mdl 32]} Nde5 {[%emt 0:15:54]} 22. Be2 {[%emt 0:00:35]} Nc6 {[%emt 0:00:43]} (22... Bb7 $14) 23. Qc5 $1 $16 {[%emt 0:01:54]} Nge7 {[%emt 0:00:20]} ({Black should try} 23... Nge5) 24. Nd6 $1 {[%emt 0:03:02]} (24. Bxb5 $6 Bxb5 25. Qxb5 Rb8 $14) 24... Rd7 {[%emt 0:02:49]} 25. Bxb5 {[%emt 0:02:54] &Bianco is much more active.} (25. Nxb5 Rxd1+ 26. Nxd1 (26. Rxd1 Qxa5 27. c4 Rc8 $14) 26... Bxb5 27. Bxb5 Qe5 28. Qxe5 Nxe5 $16) 25... Bxb5 {[%emt 0:01:54]} 26. Nxb5 {[%emt 0:00:06]} Rxd1+ {[%emt 0:00:03]} 27. Nxd1 {[%emt 0:00:14]} Qb8 {[%emt 0:00:26]} 28. a6 {[%emt 0:02:22]} Rd8 {[%emt 0:00:31] White must now prevent ...Rd5.} 29. Ne3 {[%emt 0:00:56] Against Rd5} f5 {[%emt 0:00:35]} 30. c4 {[%emt 0:07:11]} Rd2 {[%emt 0:00:20]} 31. b3 {[%emt 0:01:48][%cal Bb2b3,Bb3b4,Bb4b5][%mdl 32]} Qf4 {[%emt 0:00:12]} 32. Nf1 $1 {[%emt 0:00:09]} ({But not} 32. Nxa7 $2 Qxf2+ 33. Kh1 f4 $19) 32... Rd7 {[%emt 0:00:07]} 33. b4 {[%emt 0:04:29]} Qe5 {[%emt 0:01:31]} 34. Qxe5 {[%emt 0:01:01]} Nxe5 {[%emt 0:00:01]} 35. Na3 {[%emt 0:01:58]} Rc7 {[%emt 0:01:40]} (35... Kf7 $16) 36. b5 $18 {[%emt 0:00:23][%cal Ob5b6] Threatens to win with b6!} Nc8 {[%emt 0:00:09]} (36... Nxc4 $2 37. Rc1 $18) 37. Re1 {[%emt 0:00:50]} Nxc4 {[%emt 0:00:18]} (37... Nd3 38. Rxe6 Kf7) 38. Nxc4 $2 {[%emt 0:00:52]} ({White must play} 38. Rc1 $1 $18 {[%cal Rc1c4]}) 38... Rxc4 $14 {[%emt 0:00:05]} 39. Rxe6 $18 {[%emt 0:00:03][%mdl 4096] Endgame KRN-KRN} Kf7 {[%emt 0:00:11]} 40. Re5 {[%emt 0:00:28]} (40. Re1 $14) 40... Rc1 {[%emt 0:00:23]} (40... Nd6 $1 $11 {keeps the balance.}) 41. Rxf5+ $16 {[%emt 0:00:36]} Ke7 {[%emt 0:00:27]} 42. g4 {[%emt 0:00:56][%cal Bg2g4,Bg4g5][%mdl 32]} Nd6 {[%emt 0:00:10] [#]} 43. Rh5 {[%emt 0:01:40]} (43. Re5+ $142 $1 Kf6 44. Rh5) 43... h6 {[%emt 0:00:39]} 44. Kg2 {[%emt 0:01:33]} ({Reject} 44. b6 $6 axb6 45. Kg2 (45. Re5+ Kf6 $11) 45... Ra1 $11) 44... Rb1 {[%emt 0:00:07]} 45. Rc5 {[%emt 0:01:47] Hoping for Rc7+.} Kd7 {[%emt 0:00:19] Inhibits Rc7+.} 46. Ne3 {[%emt 0:00:05]} g6 {[%emt 0:00:23] Against Nf5} (46... Rxb5 $16 {was worth a try.} 47. Rxb5 Nxb5) 47. g5 $18 {[%emt 0:01:51]} h5 {[%emt 0:00:15] [#]} 48. Nd5 $1 {[%emt 0:00:46][%cal Ob5b6] b6! is the strong threat.} Nxb5 {[%emt 0:00:58]} (48... Rxb5 49. Rxb5 Nxb5) 49. Nf4 {[%emt 0:00:32]} Kd6 {[%emt 0:01:56]} 50. Rd5+ {[%emt 0:00:40]} Kc6 {[%emt 0:00:11]} 51. Re5 {[%emt 0:00:05]} Rb4 {[%emt 0:02:23]} 52. Nxg6 {[%emt 0:02:38]} Rg4+ {[%emt 0:00:06]} 53. Kf3 {[%emt 0:00:13]} Nd4+ {[%emt 0:00:31]} 54. Ke3 {[%emt 0:00:12]} Nc2+ {[%emt 0:00:07]} 55. Kd2 {[%emt 0:00:53]} Nd4 {[%emt 0:00:08]} 56. Kd3 {[%emt 0:00:07] aiming for h3.} Nf3 {[%emt 0:00:06]} 57. Ke3 {[%emt 0:03:23]} Nxh2 {[%emt 0:00:11]} 58. Ne7+ {[%emt 0:01:14]} Kd6 $2 {[%emt 0:00:27]} (58... Kd7 {keeps fighting.} 59. Ng6 h4 60. Re7+ Kd6) 59. f4 {[%emt 0:00:04] White is clearly winning.} Nf1+ {[%emt 0:00:07]} 60. Ke4 {[%emt 0:00:22]} h4 {[%emt 0:02:02]} 61. Nf5+ {[%emt 0:01:02]} Kc6 {[%emt 0:00:16]} 62. Re6+ {[%emt 0:00:06]} Kb5 {[%emt 0:00:25]} 63. Rh6 {[%emt 0:00:13]} Nd2+ {[%emt 0:00:35]} 64. Ke3 {[%emt 0:00:27]} Nf1+ {[%emt 0:00:02]} 65. Kf3 {[%emt 0:00:04]} Nh2+ {[%emt 0:00:02]} 66. Ke4 {[%emt 0:00:06]} Rg1 {[%emt 0:01:39]} 67. Nxh4 {[%emt 0:00:38]} Ng4 {[%emt 0:00:07]} 68. Re6 {[%emt 0:01:09]} Rh1 {[%emt 0:01:01]} 69. Nf3 {[%emt 0:01:05]} Rh3 {[%emt 0:01:40] Weighted Error Value: White=0.19 (very precise) /Black=0.38} 1-0

[Event "67th Mexican-ch Open 2022"]
[Site "Chihuahua"]
[Date "2022.04.16"]
[Round "7.17"]
[White "Flores Irurso, Paul Josue"]
[Black "Avila Rodriguez, Joshua Ad"]
[Result "0-1"]
[ECO "B90"]
[WhiteElo "1912"]
[BlackElo "2182"]
[Annotator "TA"]
[PlyCount "108"]
[EventDate "2022.04.12"]
[EventType "swiss"]
[EventCountry "MEX"]
[SourceTitle "playchess.com"]
[Source "ChessBase"]
[SourceQuality "1"]
[TimeControl "5400+30"]

{[%evp 21,108,14,16,13,4,20,14,0,0,10,20,-2,0,-14,39,0,0,-19,-28,-22,-19,-17,0,0,0,0,52,70,113,87,110,9,27,0,0,0,0,0,0,0,212,210,98,0,0,0,0,0,0,0,0,0,0,-127,-135,-133,-131,-143,-135,-143,-120,-133,-108,-128,-81,-301,-295,-287,-271,-470,-463,-453,-446,-756,-754,-751,-732,-859,-729,-716,-695,-29982,-29983,-29983,-29984,-29985,-29986,-29982,-6841]} 1. e4 {[%emt 0:00:48]} c5 {[%emt 0:00:11]} 2. Nf3 {[%emt 0:00:31]} d6 {[%emt 0:00:07]} 3. d4 {[%emt 0:00:13]} cxd4 {[%emt 0:00:06]} 4. Nxd4 {[%emt 0:00:14]} Nf6 {[%emt 0:00:07]} 5. Nc3 {[%emt 0:00:33]} a6 {[%emt 0:00:17]} 6. Be3 {[%emt 0:01:53]} e5 {[%emt 0:00:13]} 7. Nb3 {[%emt 0:00:23]} Be7 {[%emt 0:00:10]} 8. f3 {[%emt 0:01:20]} Be6 {[%emt 0:00:32]} 9. Qd2 {[%emt 0:02:24]} h5 {[%emt 0:00:34]} 10. O-O-O {[%emt 0:06:54]} Nbd7 {[%emt 0:00:27]} 11. Kb1 {[%emt 0:05:07]} Rc8 $1 {[%emt 0:01:15][%mdl 4] is more profitable than 11...b5 at the moment.} 12. Nd5 {[%emt 0:14:47] B90: Sicilian Najdorf: Unusual White 6th moves, 6 Be3 Ng4 and 6 Be3 e5.} Nxd5 {[%emt 0:00:57]} 13. exd5 {[%emt 0:00:27]} Bf5 {[%emt 0:00:10]} 14. Bd3 {[%emt 0:00:24] The position is equal.} Bxd3 {[%emt 0:00:11]} 15. Qxd3 {[%emt 0:00:06]} Bg5 {[%emt 0:00:09]} 16. Rhe1 {[%emt 0:08:10]} O-O {[%emt 0:09:48]} 17. g4 {[%emt 0:03:29] [#]} h4 $146 {[%emt 0:06:35]} (17... Bxe3 $11 18. Qxe3 (18. Rxe3 Qg5 $11) 18... hxg4) ({Predecessor:} 17... hxg4 18. fxg4 Bxe3 19. Rxe3 Qg5 20. Rh3 g6 21. Rf1 Kg7 22. Nd2 Nc5 23. Qe2 Rh8 {1-0 (31) Zaichenko,D (2104)-Carroll,T (2033) Chess.com INT 2021}) 18. Bxg5 {[%emt 0:11:23]} Qxg5 {[%emt 0:00:33]} 19. Qf5 {[%emt 0:00:12]} Qxf5 {[%emt 0:21:36]} 20. gxf5 {[%emt 0:00:02]} Nf6 {[%emt 0:00:21] Inhibits Re4.} 21. Nd2 {[%emt 0:06:38]} Nh5 {[%emt 0:02:50]} (21... Nxd5 22. Ne4 Ne7 23. f6 (23. Nxd6 Rcd8 $11) 23... gxf6 24. Nxf6+ (24. Rxd6 f5 $11) 24... Kg7 25. Nd7 $11 (25. Rxd6 Rfd8 $14)) 22. Ne4 {[%emt 0:00:31]} Rfd8 {[%emt 0:00:05]} 23. Rg1 {[%emt 0:01:55]} f6 {[%emt 0:02:32]} (23... Kf8 $11) 24. Rg4 $14 {[%emt 0:01:08]} h3 {[%emt 0:00:15]} 25. Rdg1 {[%emt 0:00:25]} Kf7 {[%emt 0:07:28]} 26. Rh4 {[%emt 0:00:35]} (26. f4 $1 $16) 26... Nf4 $11 {[%emt 0:00:25]} 27. Rgg4 {[%emt 0:01:59]} Rd7 $1 {[%emt 0:01:42]} (27... Nxd5 $2 28. Rh7 Rg8 29. Nxd6+ Ke7 30. Nxc8+ Rxc8 31. Rgxg7+ Kd6 32. Rxb7 $18) 28. Rh7 {[%emt 0:03:05]} Rg8 {[%emt 0:00:14]} 29. c4 {[%emt 0:01:39]} Rdd8 {[%emt 0:05:24]} 30. Kc2 {[%emt 0:08:30]} Ne2 $2 {[%emt 0:03:17]} (30... b6 $11 {and Black stays safe.}) 31. Rg6 $1 $18 {[%emt 0:03:08] Black must now prevent Rxf6+.} Kf8 {[%emt 0:13:01] [#]} 32. Kd2 {[%emt 0:05:53]} ({Worse is} 32. Rxh3 Nf4 33. Rh7 Nxg6 34. fxg6 b5 $15) ({Better is} 32. Nxf6 $1 $16 gxf6 33. Rxf6+ Ke8 34. Rff7 (34. Re6+ Kf8 $16)) 32... Nd4 $11 {[%emt 0:01:32][%csl LRf3,LRf5]} 33. Rxh3 {[%emt 0:03:00]} Nxf5 {[%emt 0:03:46]} 34. Rh7 {[%emt 0:01:21]} Ne7 {[%emt 0:02:58]} ({Much less strong is} 34... Nd4 35. h4 $16) 35. Rg1 {[%emt 0:00:37]} Kf7 {[%emt 0:00:17]} 36. b3 {[%emt 0:02:36]} Nf5 {[%emt 0:00:19]} 37. Ng3 {[%emt 0:01:18]} (37. Kd3 $11 {remains equal.}) 37... Nd4 $17 {[%emt 0:00:35]} 38. Ke3 {[%emt 0:00:50]} Rh8 {[%emt 0:00:44]} 39. Rxh8 {[%emt 0:00:08]} Rxh8 {[%emt 0:00:04][%mdl 4096] Endgame KRN-KRN} 40. Rg2 {[%emt 0:00:39]} g5 {[%emt 0:10:42] &Nero is more active.} 41. Ne4 {[%emt 0:02:20]} Ke7 {[%emt 0:00:06]} 42. b4 {[%emt 0:01:04]} Rh3 {[%emt 0:00:21]} (42... Nf5+ $142 43. Kd3 Rh3) 43. Ng3 $2 {[%emt 0:00:14]} (43. Rf2 $17 {was called for.}) 43... f5 $19 {[%emt 0:01:30]} 44. Kf2 {[%emt 0:00:31]} b6 {[%emt 0:00:11][%cal Bb7b6,Bb6a5,Ba5b4,Bb4b3][%mdl 32]} 45. a4 $2 {[%emt 0:00:41]} (45. Kf1) 45... Kf6 {[%emt 0:01:14]} 46. a5 {[%emt 0:02:24]} bxa5 {[%emt 0:00:20]} 47. c5 {[%emt 0:00:27]} (47. bxa5 $142 Rh4 48. c5) 47... axb4 {[%emt 0:00:10]} 48. c6 {[%emt 0:00:32]} Ke7 {[%emt 0:00:12]} 49. Kf1 {[%emt 0:00:08]} b3 {[%emt 0:00:25]} 50. Rb2 {[%emt 0:00:29]} a5 {[%emt 0:01:12] Hoping for ...a4.} 51. Ne2 {[%emt 0:00:50]} Rxh2 {[%emt 0:03:16] Black mates.} 52. Nxd4 {[%emt 0:00:56]} Rxb2 {[%emt 0:00:07]} 53. Nxf5+ {[%emt 0:00:18]} Kd8 {[%emt 0:00:07]} 54. Nxd6 {[%emt 0:00:10]} Rc2 {[%emt 0:00:10] Black used his chance.  Weighted Error Value: White=0.55/Black=0.20 (precise)} 0-1

[Event "67th Mexican-ch Open 2022"]
[Site "Chihuahua"]
[Date "2022.04.16"]
[Round "7.18"]
[White "Lopez Raygoza, Luis Alberto"]
[Black "Guerrero Cataldo, Juan Andres"]
[Result "1/2-1/2"]
[ECO "B10"]
[WhiteElo "2207"]
[BlackElo "1976"]
[Annotator "TA"]
[PlyCount "79"]
[EventDate "2022.04.12"]
[EventType "swiss"]
[EventCountry "MEX"]
[SourceTitle "playchess.com"]
[Source "ChessBase"]
[SourceQuality "1"]
[TimeControl "5400+30"]

{[%evp 9,79,0,0,7,68,-14,-17,-19,-10,-16,0,-20,0,-26,-16,-34,0,0,39,30,15,26,106,104,110,98,99,78,142,124,160,145,146,154,147,95,116,70,82,89,85,22,38,38,53,20,64,60,60,61,78,10,8,9,37,35,35,4,4,4,4,0,0,0,0,0,0,0,0,0,0,-17]} 1. e4 {[%emt 0:04:54]} c6 {[%emt 0:14:27]} 2. Nf3 {[%emt 0:03:42]} d5 {[%emt 0:00:13]} 3. exd5 {[%emt 0:00:05]} cxd5 {[%emt 0:00:03]} 4. Ne5 {[%emt 0:00:04]} Nc6 {[%emt 0:02:04]} 5. Bb5 {[%emt 0:00:35]} Qc7 {[%emt 0:03:07]} 6. d4 {[%emt 0:05:38] B10: Caro-Kann: 2 d3 and 2 c4.} a6 {[%emt 0:02:08]} (6... e6 $11) 7. Ba4 {[%emt 0:04:58] &Bianco is much more active.} (7. Bxc6+ $14 bxc6 8. Nc3) 7... b5 $11 {[%emt 0:10:30]} 8. Nxc6 {[%emt 0:00:55]} Qxc6 {[%emt 0:00:03]} 9. Bb3 {[%emt 0:00:05]} Nf6 {[%emt 1:02:25]} 10. a4 {[%emt 0:01:43] [#]} Bd7 $146 {[%emt 0:00:00]} ({Predecessor:} 10... b4 11. a5 Bd7 12. Nd2 e6 13. Nf3 Bd6 14. Ne5 Qc7 15. Nxd7 Nxd7 16. Qg4 Kf8 {½-½ (45) Schulte,C (2109)-Winkler,F (1668) Goch 2006}) 11. Nd2 {[%emt 0:04:46]} e6 {[%emt 0:00:00]} 12. Nf3 {[%emt 0:01:17]} Bd6 {[%emt 0:00:00][%cal Rb5a4]} (12... Bb4+ 13. c3 Bd6 14. axb5 $11) 13. Ne5 {[%emt 0:01:48]} Bxe5 {[%emt 0:00:00]} 14. dxe5 {[%emt 1:07:00]} Ne4 15. Qg4 {[%emt 0:00:00]} Rg8 {[%emt 0:00:00] [#]} (15... Qc7 $11 {remains equal.}) 16. O-O $1 $16 {[%emt 0:00:00]} Qc7 {[%emt 0:00:00]} 17. axb5 {[%emt 0:00:00]} Bxb5 {[%emt 0:00:00]} 18. Re1 {[%emt 0:00:00]} Nc5 {[%emt 0:00:00]} (18... Rc8 $142) 19. Be3 {[%emt 0:00:00]} Nd7 {[%emt 0:00:00]} ({Less strong is} 19... Nxb3 20. cxb3 Qxe5 21. Rac1) 20. Bg5 {[%emt 0:00:00][%cal Ob3d5] [#] aiming for Bxd5!} Nb6 {[%emt 0:00:00]} 21. Bd2 {[%emt 0:00:00]} Nc4 {[%emt 0:00:00]} 22. Bxc4 {[%emt 0:00:00]} (22. Bc3 $142) 22... Qxc4 {[%emt 0:00:00]} 23. Qg5 {[%emt 0:00:00]} ({Don't take} 23. Qxc4 Bxc4 24. b3 Bb5 $14) (23. Qh3 $16) 23... h6 {[%emt 0:00:00]} 24. Qg3 {[%emt 0:00:00]} g5 {[%emt 0:00:00]} 25. Rec1 {[%emt 0:00:00]} ({Better is} 25. Qa3 $16) 25... Rc8 {[%emt 0:00:00][%cal Ba8c8,Bc8c5,Bc5c7][%mdl 32]} 26. Qa3 {[%emt 0:00:00]} d4 {[%emt 0:00:00]} 27. Qg3 {[%emt 0:00:00]} Rc5 {[%emt 0:00:00]} 28. b3 {[%emt 0:00:00]} Qe2 {[%emt 0:00:00][%csl LRd2,LRe5]} 29. Bb4 {[%emt 0:00:00]} Rc7 {[%emt 0:02:20]} ({Weaker is} 29... Rxc2 30. Rxc2 Qxc2 31. Qf3 $16) 30. c4 {[%emt 0:00:00]} (30. Rd1 $16) 30... dxc3 $11 {[%emt 0:04:15]} 31. Bxc3 {[%emt 0:00:00] Bb4 is the strong threat.} (31. Rxc3 {seems wilder.} Qb2 32. Rd1 Rxc3 33. Bxc3 Qe2 34. Re1) 31... Qd3 {[%emt 0:01:03]} 32. Qxd3 {[%emt 0:00:00]} Bxd3 {[%emt 0:03:52]} 33. Ba5 {[%emt 0:00:00]} (33. Bb4 $5 {[%cal Rc1c7]} Rxc1+ 34. Rxc1 $14) 33... Rxc1+ {[%emt 0:00:00] The position is equal.} 34. Rxc1 {[%emt 0:00:00][%mdl 4096] Endgame Strongly threatening Rc8+. KRB-KRB} Kf8 {[%emt 0:00:00]} 35. f3 {[%emt 0:00:00]} Kg7 {[%emt 0:00:00]} 36. Kf2 {[%emt 0:00:00]} Rb8 {[%emt 0:00:00]} 37. Rc3 {[%emt 0:00:00]} Bb5 {[%emt 0:00:00]} 38. g4 {[%emt 0:00:00]} Kg6 {[%emt 0:00:00]} 39. Ke3 {[%emt 0:00:00]} h5 {[%emt 0:00:00]} 40. gxh5+ {[%emt 0:05:47] Black defended with fortune.  Weighted Error Value: White=0.19 (very precise) /Black=0.21 (precise)} 1/2-1/2

[Event "67th Mexican-ch Open 2022"]
[Site "Chihuahua"]
[Date "2022.04.16"]
[Round "7.19"]
[White "Paredes Guzman, Francisco Javier"]
[Black "Capo Vidal, Uriel"]
[Result "1-0"]
[ECO "D31"]
[WhiteElo "1891"]
[BlackElo "2306"]
[Annotator "TA"]
[PlyCount "121"]
[EventDate "2022.04.12"]
[EventType "swiss"]
[EventCountry "MEX"]
[SourceTitle "playchess.com"]
[Source "ChessBase"]
[SourceQuality "1"]
[TimeControl "5400+30"]

{[%evp 9,121,22,16,8,23,15,22,18,20,14,21,17,23,22,29,24,22,24,25,0,0,0,0,0,0,0,0,-22,-22,-22,-22,-25,-23,-23,-24,-38,-15,-17,-17,-33,-37,-61,-9,-14,0,-14,-10,-14,0,0,7,0,7,0,0,0,54,12,18,23,34,29,24,30,58,54,54,52,54,46,89,89,89,89,89,89,89,89,89,89,89,89,189,169,163,175,176,158,410,411,393,378,360,326,681,684,684,684,674,661,661,652,628,621,616,592,575,490,574,573,552,539,477,442]} 1. d4 {[%emt 0:00:05]} d5 {[%emt 0:13:37]} 2. c4 {[%emt 0:00:31]} e6 {[%emt 0:00:10]} 3. Nc3 {[%emt 0:00:15]} a6 {[%emt 0:00:08]} 4. c5 {[%emt 0:01:42]} b6 {[%emt 0:01:23]} 5. cxb6 {[%emt 0:00:06]} cxb6 {[%emt 0:04:53]} 6. Nf3 {[%emt 0:01:27] D31: Queen's Gambit Declined: Semi-Slav without ...Nf6 (+ Marshall Gambit and Noteboom) and Exchange Variation lines without ...Nf6.} Bb7 {[%emt 0:02:42]} 7. Bf4 {[%emt 0:04:42]} Bd6 {[%emt 0:01:00]} 8. Bxd6 {[%emt 0:17:27] The position is equal.} Qxd6 {[%emt 0:00:21]} 9. e3 {[%emt 0:00:40]} Nd7 {[%emt 0:00:16]} 10. Qb3 {[%emt 0:14:10]} Ngf6 {[%emt 0:06:06]} 11. Bd3 {[%emt 0:04:55]} O-O {[%emt 0:01:10]} 12. O-O {[%emt 0:04:47]} b5 {[%emt 0:05:40] [#]} 13. a3 $146 {[%emt 0:10:24]} ({Predecessor:} 13. Rfc1 Rfc8 14. h3 g6 15. Bf1 Rc7 16. Ne2 Nb6 17. Rxc7 Qxc7 18. Qb4 Ne4 19. Rc1 {½-½ (47) Del Rio de Angelis,S (2546)-Garcia Martin,M (2301) Roquetas de Mar 2019}) 13... Ne4 {[%emt 0:01:55]} 14. Qb4 {[%emt 0:01:14]} Qxb4 {[%emt 0:05:07]} 15. axb4 {[%emt 0:00:05]} Nxc3 {[%emt 0:00:08]} 16. bxc3 {[%emt 0:00:02]} Rfc8 {[%emt 0:00:10]} 17. Rfc1 {[%emt 0:03:06]} Rc7 {[%emt 0:00:30]} 18. Nd2 {[%emt 0:01:14]} Rac8 {[%emt 0:00:11]} 19. Nb1 {[%emt 0:01:15]} Nb6 {[%emt 0:01:50]} 20. Ra3 {[%emt 0:05:52]} Kf8 {[%emt 0:01:57]} 21. Kf1 {[%emt 0:00:14]} Na4 {[%emt 0:02:43]} 22. Ke2 {[%emt 0:01:45]} Bc6 {[%emt 0:02:08]} 23. Bc2 {[%emt 0:05:54]} Be8 {[%emt 0:00:52][%cal Ra4c3]} 24. Bxa4 {[%emt 0:02:10]} bxa4 {[%emt 0:00:03]} 25. Kd2 {[%emt 0:01:11]} a5 {[%emt 0:01:14]} (25... Ke7 $15) 26. bxa5 $11 {[%emt 0:00:22]} Ra7 {[%emt 0:01:14]} 27. Ra1 {[%emt 0:00:58]} Rxa5 {[%emt 0:03:31]} 28. Na3 {[%emt 0:00:49] Against Rb5} Rd8 {[%emt 0:01:59]} 29. Rab1 {[%emt 0:01:00]} f6 {[%emt 0:03:37]} 30. Rb7 {[%emt 0:06:38]} e5 {[%emt 0:01:50]} 31. Ra1 {[%emt 0:04:47]} Ra6 {[%emt 0:04:17]} 32. Nc2 {[%emt 0:00:29]} e4 {[%emt 0:08:26]} ({Black should play} 32... Ra5 $11) 33. Na3 {[%emt 0:01:18]} ({Of course not} 33. Nb4 Ra5 $11) 33... Rc8 {[%emt 0:02:21]} 34. Rc1 {[%emt 0:00:27]} f5 {[%emt 0:03:01]} 35. h4 {[%emt 0:01:05]} h6 {[%emt 0:00:26]} 36. g3 {[%emt 0:00:46]} Kg8 {[%emt 0:09:48]} 37. Nc2 {[%emt 0:01:45]} Kf8 {[%emt 0:01:25]} 38. Nb4 {[%emt 0:00:16][%csl LRa6,LRd5]} Ra5 {[%emt 0:00:02]} 39. Ra1 {[%emt 0:00:36]} Bb5 {[%emt 0:01:58]} 40. Nxd5 {[%emt 0:01:05]} Bc6 {[%emt 0:03:43][%csl LRb7,LRd5]} 41. Rc7 {[%emt 0:00:15] &Bianco is much more active.} Rxc7 {[%emt 0:00:03]} 42. Nxc7 $16 {[%emt 0:00:04][%mdl 4096] [#] Endgame c4 is the strong threat. KRB-KRN} Ke7 {[%emt 0:00:29]} 43. c4 {[%emt 0:00:28][%cal Bc3c4,Bc4b5][%mdl 32] Hoping for Kc3.} Kd6 {[%emt 0:00:23]} 44. Nb5+ {[%emt 0:01:00]} Bxb5 {[%emt 0:00:16]} 45. cxb5 {[%emt 0:00:05] KR-KR} Kc7 {[%emt 0:00:52]} (45... Rxb5 $16 46. Rxa4 Rb2+ 47. Ke1 Rb6) 46. Kc3 $18 {[%emt 0:00:07] [#] Strongly threatening Kb4.} Kb6 {[%emt 0:00:01]} 47. Kc4 {[%emt 0:00:14] And now h5 would win.} a3 {[%emt 0:06:19]} 48. Ra2 {[%emt 0:01:16] Black must now prevent h5.} Ra4+ $2 {[%emt 0:01:14] Loses the game.} (48... g6 $16 {keeps fighting.} 49. Kc3 h5) 49. Kb3 {[%emt 0:00:07]} Kxb5 {[%emt 0:00:08]} 50. Rxa3 {[%emt 0:00:05]} Rb4+ {[%emt 0:00:02]} 51. Kc2 {[%emt 0:00:17] aiming for Rb3.} Kc4 {[%emt 0:01:45] Against Rb3} (51... g5 52. Rb3 gxh4 53. gxh4 Ka4) 52. Ra5 {[%emt 0:00:39][%csl Gd4][%cal Ra5c5] White is clearly winning.} Rb7 {[%emt 0:00:01]} 53. Rxf5 {[%emt 0:00:21]} Ra7 {[%emt 0:00:01]} 54. Rc5+ {[%emt 0:00:12]} Kb4 {[%emt 0:00:01]} 55. Kd2 {[%emt 0:00:10]} Ra2+ {[%emt 0:01:52]} 56. Ke1 {[%emt 0:00:11]} Ra7 {[%emt 0:00:14]} 57. Re5 {[%emt 0:00:45]} Kc4 {[%emt 0:00:08]} 58. Rf5 {[%emt 0:00:39]} Re7 {[%emt 0:01:14]} 59. Kd2 {[%emt 0:00:27]} Ra7 {[%emt 0:00:07]} 60. Rc5+ {[%emt 0:00:04]} Kb4 {[%emt 0:00:03]} 61. Ke2 {[%emt 0:00:04] Weighted Error Value: White=0.06 (flawless) /Black=0.22 (precise)} 1-0